bitfinex/quotes_BTCUSD_20240623
["timestamp","ask_amount","ask_price","bid_price","bid_amount"]
[1719116952166,3.96517158,64490.0,64489.0,0.000935]
[1719116952419,3.87180797,64490.0,64489.0,0.000935]
[1719116955008,3.77396413,64490.0,64489.0,0.000935]
[1719116955228,3.87166333,64490.0,64489.0,0.000935]
[1719116955455,3.728464,64490.0,64489.0,0.000935]
[1719116955684,3.87166359,64490.0,64489.0,0.000935]
[1719116956191,3.8716636,64490.0,64489.0,0.000935]
[1719116956634,3.87160993,64490.0,64489.0,0.000935]
[1719116957302,3.86960993,64490.0,64489.0,0.000935]
[1719116957743,3.87160993,64490.0,64489.0,0.000935]
[1719116957939,3.87060993,64490.0,64489.0,0.000935]
[1719116958172,3.726464,64490.0,64489.0,0.000935]
[1719116958318,3.869612,64490.0,64489.0,0.000935]
[1719116961342,3.77188751,64490.0,64489.0,0.000935]
[1719116961572,3.86932501,64490.0,64489.0,0.000935]
[1719116961799,3.87232501,64490.0,64489.0,0.000935]
[1719116962278,3.87532501,64490.0,64489.0,0.000935]
[1719116962504,3.87232501,64490.0,64489.0,0.000935]
[1719116962734,3.86932501,64490.0,64489.0,0.000935]
[1719116964601,3.86790553,64490.0,64489.0,0.000935]
[1719116964873,3.726464,64490.0,64489.0,0.000935]
[1719116965039,3.86785974,64490.0,64489.0,0.000935]
[1719116970563,3.726464,64490.0,64489.0,0.000935]
[1719116970765,3.86650941,64490.0,64489.0,0.000935]
[1719116973686,3.726464,64490.0,64489.0,0.000935]
[1719116973865,3.86646786,64490.0,64489.0,0.000935]
[1719116974070,3.726464,64490.0,64489.0,0.000935]
[1719116974255,3.86646786,64490.0,64489.0,0.000935]
[1719116974795,3.87246786,64490.0,64489.0,0.000935]
[1719116974996,3.87746786,64490.0,64489.0,0.000935]
[1719116975210,3.87154749,64490.0,64489.0,0.000935]
[1719116975567,3.86954749,64490.0,64489.0,0.000935]
[1719116975773,3.87254749,64490.0,64489.0,0.000935]
[1719116976815,3.732464,64490.0,64489.0,0.000935]
[1719116977031,3.87251861,64490.0,64489.0,0.000935]
[1719116977850,3.86951861,64490.0,64489.0,0.000935]
[1719116978004,3.86651861,64490.0,64489.0,0.000935]
[1719116978449,3.86751861,64490.0,64489.0,0.000935]
[1719116978657,3.86951861,64490.0,64489.0,0.152735]
[1719116979090,3.86751861,64490.0,64489.0,0.152735]
[1719116979443,3.86851861,64490.0,64489.0,0.152735]
[1719116979811,1.42840561,64490.0,64489.0,0.152735]
[1719116980013,1.3418021,64490.0,64489.0,0.152735]
[1719116980418,3.7819151,64490.0,64489.0,0.152735]
[1719116981252,3.8684827,64490.0,64489.0,0.152735]
[1719116981423,3.8684827,64490.0,64489.0,0.088335]
[1719116983129,3.86829524,64490.0,64489.0,0.088335]
[1719116983531,3.86829523,64490.0,64489.0,0.088335]
[1719116984326,3.86729523,64490.0,64489.0,0.088335]
[1719116984498,3.86629523,64490.0,64489.0,0.088335]
[1719116984727,3.86725086,64490.0,64489.0,0.088335]
[1719116985071,3.86625086,64490.0,64489.0,0.088335]
[1719116986121,3.726464,64490.0,64489.0,0.088335]
[1719116986288,3.86624755,64490.0,64489.0,0.088335]
[1719116989437,3.86612746,64490.0,64489.0,0.088335]
[1719116991472,3.87312746,64490.0,64489.0,0.088335]
[1719116991916,3.86612746,64490.0,64489.0,0.088335]
[1719116992156,3.87012746,64490.0,64489.0,0.088335]
[1719116992356,3.87412746,64490.0,64489.0,0.088335]
[1719116992564,3.87398658,64490.0,64489.0,0.088335]
[1719116992888,3.734464,64490.0,64489.0,0.088335]
[1719116993116,3.87395507,64490.0,64489.0,0.088335]
[1719116995488,3.87395478,64490.0,64489.0,0.088335]
[1719116998650,3.77730538,64490.0,64489.0,0.088335]
[1719116998854,3.87267908,64490.0,64489.0,0.088335]
[1719117000649,3.87267908,64490.0,64489.0,0.108335]
[1719117001054,3.734464,64490.0,64489.0,0.108335]
[1719117001260,3.87218935,64490.0,64489.0,0.108335]
[1719117001516,3.74411141,64490.0,64489.0,0.108335]
[1719117001871,3.87218304,64490.0,64489.0,0.108335]
[1719117002273,3.87218304,64490.0,64489.0,0.088335]
[1719117003802,3.82028304,64490.0,64489.0,0.088335]
[1719117004036,3.87218304,64490.0,64489.0,0.088335]
[1719117004242,3.8721746,64490.0,64489.0,0.088335]
[1719117005022,3.86422993,64490.0,64489.0,0.088335]
[1719117005346,3.87222993,64490.0,64489.0,0.088335]
[1719117005516,3.86822993,64490.0,64489.0,0.088335]
[1719117006065,3.87222993,64490.0,64489.0,0.088335]
[1719117006928,3.86822993,64490.0,64489.0,0.088335]
[1719117007350,3.87215904,64490.0,64489.0,0.088335]
[1719117010350,3.734464,64490.0,64489.0,0.088335]
[1719117010606,3.87215692,64490.0,64489.0,0.088335]
[1719117010806,3.87215681,64490.0,64489.0,0.088335]
[1719117011639,3.86815681,64490.0,64489.0,0.088335]
[1719117012054,3.71709481,64490.0,64489.0,0.088335]
[1719117012944,3.87215681,64490.0,64489.0,0.088335]
[1719117013366,3.82562904,64490.0,64489.0,0.088335]
[1719117013568,3.96340591,64490.0,64489.0,0.088335]
[1719117013778,3.96740591,64490.0,64489.0,0.088335]
[1719117014388,3.96340591,64490.0,64489.0,0.088335]
[1719117014592,3.96740591,64490.0,64489.0,0.088335]
[1719117015219,3.96340591,64490.0,64489.0,0.088335]
[1719117015442,3.95940591,64490.0,64489.0,0.088335]
[1719117015677,3.96340591,64490.0,64489.0,0.088335]
[1719117016070,3.82162904,64490.0,64489.0,0.088335]
[1719117016265,3.96254246,64490.0,64489.0,0.088335]
[1719117016678,3.97518897,64490.0,64489.0,0.088335]
[1719117016865,3.96554246,64490.0,64489.0,0.088335]
[1719117019658,3.82762904,64490.0,64489.0,0.088335]
[1719117019863,3.96536326,64490.0,64489.0,0.088335]
[1719117020160,3.82762904,64490.0,64489.0,0.088335]
[1719117020298,3.96551908,64490.0,64489.0,0.088335]
[1719117022675,3.82762904,64490.0,64489.0,0.088335]
[1719117022884,3.96551834,64490.0,64489.0,0.088335]
[1719117025867,3.96505271,64490.0,64489.0,0.088335]
[1719117028919,3.8795678,64490.0,64489.0,0.088335]
[1719117029111,3.96480593,64490.0,64489.0,0.088335]
[1719117029323,3.95516292,64490.0,64489.0,0.088335]
[1719117029925,3.96480939,64490.0,64489.0,0.088335]
[1719117032041,4.00703221,64490.0,64489.0,0.088335]
[1719117032282,4.01667828,64490.0,64489.0,0.088335]
[1719117033718,3.869597,64490.0,64489.0,0.088335]
[1719117035032,3.86956659,64490.0,64489.0,0.088335]
[1719117038120,3.85936653,64490.0,64489.0,0.088335]
[1719117038351,3.78407054,64490.0,64489.0,0.088335]
[1719117038593,3.90132916,64490.0,64489.0,0.088335]
[1719117038932,3.91097411,64490.0,64489.0,0.088335]
[1719117039131,3.86901244,64490.0,64489.0,0.088335]
[1719117041074,3.732464,64490.0,64489.0,0.088335]
[1719117041274,3.86897788,64490.0,64489.0,0.088335]
[1719117042788,3.86982788,64490.0,64489.0,0.088335]
[1719117044281,3.733314,64490.0,64489.0,0.088335]
[1719117044488,3.78485198,64490.0,64489.0,0.088335]
[1719117044709,3.86973353,64490.0,64489.0,0.088335]
[1719117047277,3.733314,64490.0,64489.0,0.088335]
[1719117047483,3.86967844,64490.0,64489.0,0.088335]
[1719117047892,3.78482257,64490.0,64489.0,0.088335]
[1719117048142,3.86367919,64490.0,64489.0,0.088335]
[1719117048572,3.86967919,64490.0,64489.0,0.088335]
[1719117048723,3.86667919,64490.0,64489.0,0.088335]
[1719117049124,3.86767919,64490.0,64489.0,0.088335]
[1719117050032,3.86467919,64490.0,64489.0,0.088335]
[1719117050201,3.86567919,64490.0,64489.0,0.088335]
[1719117050404,3.729314,64490.0,64489.0,0.088335]
[1719117050607,3.86566409,64490.0,64489.0,0.088335]
[1719117051436,3.86366409,64490.0,64489.0,0.088335]
[1719117051632,3.87666409,64490.0,64489.0,0.088335]
[1719117052047,3.86966409,64490.0,64489.0,0.088335]
[1719117052456,3.87066409,64490.0,64489.0,0.088335]
[1719117053145,3.86466409,64490.0,64489.0,0.088335]
[1719117053346,3.86566409,64490.0,64489.0,0.088335]
[1719117053598,3.729314,64490.0,64489.0,0.088335]
[1719117053742,3.86556299,64490.0,64489.0,0.088335]
[1719117054159,3.81366299,64490.0,64489.0,0.108335]
[1719117054355,3.81366299,64490.0,64489.0,0.088335]
[1719117054539,3.86556299,64490.0,64489.0,0.088335]
[1719117056590,3.729314,64490.0,64489.0,0.088335]
[1719117056825,3.86556635,64490.0,64489.0,0.088335]
[1719117057266,3.82375378,64490.0,64489.0,0.088335]
[1719117057462,3.82275378,64490.0,64489.0,0.088335]
[1719117057666,3.86456652,64490.0,64489.0,0.088335]
[1719117057837,3.87056652,64490.0,64489.0,0.088335]
[1719117058651,3.86956652,64490.0,64489.0,0.088335]
[1719117058829,3.87656652,64490.0,64489.0,0.088335]
[1719117059189,3.86956652,64490.0,64489.0,0.088335]
[1719117059531,3.87256652,64490.0,64489.0,0.088335]
[1719117059728,3.736314,64490.0,64489.0,0.088335]
[1719117059959,3.81505709,64490.0,64489.0,0.088335]
[1719117060116,3.86645081,64490.0,64489.0,0.088335]
[1719117060332,3.86945081,64490.0,64489.0,0.088335]
[1719117060731,3.86645081,64490.0,64489.0,0.088335]
[1719117061082,3.86745081,64490.0,64489.0,0.088335]
[1719117061669,3.86445081,64490.0,64489.0,0.088335]
[1719117062074,3.729314,64490.0,64489.0,0.088335]
[1719117062330,3.86502971,64490.0,64489.0,0.088335]
[1719117065888,3.8648142,64490.0,64489.0,0.088335]
[1719117066680,3.8638142,64490.0,64489.0,0.088335]
[1719117066857,3.8628142,64490.0,64489.0,0.088335]
[1719117067060,3.8718142,64490.0,64489.0,0.088335]
[1719117067548,3.8628142,64490.0,64489.0,0.088335]
[1719117067747,3.8658142,64490.0,64489.0,0.088335]
[1719117068305,3.86602236,64490.0,64489.0,0.088335]
[1719117068942,3.86902236,64490.0,64489.0,0.088335]
[1719117069141,3.86302236,64490.0,64489.0,0.088335]
[1719117069707,3.86902236,64490.0,64489.0,0.108335]
[1719117069944,3.86302236,64490.0,64489.0,0.108335]
[1719117070117,3.86602236,64490.0,64489.0,0.108335]
[1719117070271,3.86902236,64490.0,64489.0,0.108335]
[1719117070477,3.86902236,64490.0,64489.0,0.088335]
[1719117071036,3.86902236,64490.0,64489.0,0.108335]
[1719117071231,3.86902236,64490.0,64489.0,0.088335]
[1719117071439,3.733314,64490.0,64489.0,0.088335]
[1719117071649,3.86935539,64490.0,64489.0,0.088335]
[1719117072027,3.86935539,64490.0,64489.0,0.108335]
[1719117072229,3.86935539,64490.0,64489.0,0.148835]
[1719117072230,3.81745539,64490.0,64489.0,0.148835]
[1719117072434,3.86935539,64490.0,64489.0,0.168835]
[1719117072811,3.86635539,64490.0,64489.0,0.148835]
[1719117073003,3.86635539,64490.0,64489.0,0.168835]
[1719117073197,3.86735539,64490.0,64489.0,0.168835]
[1719117073645,3.86635539,64490.0,64489.0,0.168835]
[1719117074051,3.86735539,64490.0,64489.0,0.168835]
[1719117074256,3.7826567,64490.0,64489.0,0.168835]
[1719117074457,3.731314,64490.0,64489.0,0.168835]
[1719117074658,3.78236832,64490.0,64489.0,0.168835]
[1719117075010,3.74095624,64490.0,64489.0,0.168835]
[1719117075217,3.78236832,64490.0,64489.0,0.168835]
[1719117076349,3.77836832,64490.0,64489.0,0.168835]
[1719117076560,3.77936832,64490.0,64489.0,0.168835]
[1719117077115,3.77836832,64490.0,64489.0,0.168835]
[1719117077508,3.77836832,64490.0,64489.0,0.148835]
[1719117077709,3.73695624,64490.0,64489.0,0.148835]
[1719117077937,3.77829891,64490.0,64489.0,0.148835]
[1719117078737,3.77829891,64490.0,64489.0,0.168835]
[1719117079163,3.77829891,64490.0,64489.0,0.148835]
[1719117080542,3.46817391,64490.0,64489.0,0.148835]
[1719117080903,3.46816596,64490.0,64489.0,0.148835]
[1719117081116,3.77829096,64490.0,64489.0,0.148835]
[1719117081903,3.62927696,64490.0,64489.0,0.148835]
[1719117082331,3.62927696,64490.0,64489.0,0.168835]
[1719117083130,3.64930893,64490.0,64489.0,0.168835]
[1719117084069,3.74921641,64490.0,64489.0,0.148835]
[1719117084232,3.70797415,64490.0,64489.0,0.148835]
[1719117084602,3.74918216,64490.0,64489.0,0.148835]
[1719117084874,3.74918216,64490.0,64489.0,0.168835]
[1719117085285,3.77784821,64490.0,64489.0,0.168835]
[1719117085645,3.77784821,64490.0,64489.0,0.148835]
[1719117087114,3.77805386,64490.0,64489.0,0.148835]
[1719117088663,3.77805386,64490.0,64489.0,0.083235]
[1719117090116,3.77800915,64490.0,64489.0,0.083235]
[1719117092641,3.77800915,64490.0,64489.0,0.058235]
[1719117092984,3.86238902,64490.0,64489.0,0.058235]
[1719117093183,3.72699802,64490.0,64489.0,0.058235]
[1719117093390,3.86254395,64490.0,64489.0,0.058235]
[1719117093741,3.77807693,64490.0,64489.0,0.058235]
[1719117094042,3.86254395,64490.0,64489.0,0.058235]
[1719117094838,1.085472,64488.0,64487.0,0.075561]
[1719117095156,3.67666391,64488.0,64487.0,0.075561]
[1719117095356,1.23655091,64488.0,64487.0,0.075561]
[1719117095515,3.67666391,64488.0,64487.0,0.156761]
[1719117096303,3.625585,64488.0,64487.0,0.156761]
[1719117096504,3.67764733,64488.0,64487.0,0.156761]
[1719117097449,3.67764733,64488.0,64487.0,0.090561]
[1719117098508,3.67664733,64488.0,64487.0,0.090561]
[1719117099368,3.63522656,64488.0,64487.0,0.090561]
[1719117099595,3.67757907,64488.0,64487.0,0.090561]
[1719117102669,3.63622656,64488.0,64487.0,0.090561]
[1719117102891,3.67757901,64488.0,64487.0,0.090561]
[1719117103112,3.63622656,64488.0,64487.0,0.090561]
[1719117103343,3.63522656,64488.0,64487.0,0.090561]
[1719117103564,3.67657901,64488.0,64487.0,0.090561]
[1719117103800,3.67857901,64488.0,64487.0,0.090561]
[1719117104052,3.67757901,64488.0,64487.0,0.090561]
[1719117104214,3.67657901,64488.0,64487.0,0.090561]
[1719117105807,3.67485496,64488.0,64487.0,0.090561]
[1719117108810,3.67574803,64488.0,64487.0,0.090561]
[1719117111776,3.625585,64488.0,64487.0,0.090561]
[1719117111972,3.67564346,64488.0,64487.0,0.090561]
[1719117112227,3.625585,64488.0,64487.0,0.090561]
[1719117112471,3.66600192,64488.0,64487.0,0.090561]
[1719117112877,3.67564346,64488.0,64487.0,0.090561]
[1719117113580,3.6756944,64488.0,64487.0,0.090561]
[1719117114055,3.70381049,64488.0,64487.0,0.090561]
[1719117114723,1.26369749,64488.0,64487.0,0.090561]
[1719117114949,3.70343858,64488.0,64487.0,0.090561]
[1719117117950,3.66334039,64488.0,64487.0,0.090561]
[1719117118156,3.70340564,64488.0,64487.0,0.090561]
[1719117120860,3.71524041,64488.0,64487.0,0.090561]
[1719117121094,3.7543896,64488.0,64487.0,0.090561]
[1719117121339,3.70560109,64488.0,64487.0,0.090561]
[1719117121555,3.75464553,64488.0,64487.0,0.090561]
[1719117123301,3.71524027,64488.0,64487.0,0.090561]
[1719117123525,3.75470063,64488.0,64487.0,0.090561]
[1719117126424,3.75479097,64488.0,64487.0,0.090561]
[1719117128868,3.75479097,64488.0,64487.0,0.110561]
[1719117129074,3.70289097,64488.0,64487.0,0.177661]
[1719117129282,3.75479097,64488.0,64487.0,0.177661]
[1719117129588,3.75481446,64488.0,64487.0,0.177661]
[1719117130416,3.75481447,64488.0,64487.0,0.177661]
[1719117130752,3.70291447,64488.0,64487.0,0.177661]
[1719117130934,3.75481447,64488.0,64487.0,0.177661]
[1719117132470,3.71524042,64488.0,64487.0,0.177661]
[1719117132735,3.75543607,64488.0,64487.0,0.157661]
[1719117132938,3.70866707,64488.0,64487.0,0.179521]
[1719117133095,3.86550927,64488.0,64487.0,0.179521]
[1719117135425,3.65883209,64488.0,64487.0,0.179521]
[1719117135697,3.86542164,64488.0,64487.0,0.179521]
[1719117136454,3.65883209,64488.0,64487.0,0.179521]
[1719117136661,3.86538588,64488.0,64487.0,0.179521]
[1719117136993,3.91215488,64488.0,64487.0,0.179521]
[1719117138603,3.55231228,64488.0,64487.0,0.27212241]
[1719117138803,3.44515041,64488.0,64487.0,0.27212241]
[1719117139132,3.44514838,64488.0,64487.0,0.27212241]
[1719117139891,3.44599838,64488.0,64487.0,0.27212241]
[1719117140113,3.40595592,64488.0,64487.0,0.27212241]
[1719117140311,3.44575086,64488.0,64487.0,0.27212241]
[1719117141716,3.4059568,64488.0,64487.0,0.27212241]
[1719117141975,3.44582872,64488.0,64487.0,0.27212241]
[1719117144650,3.44582872,64488.0,64487.0,0.25212241]
[1719117144797,3.44661718,64488.0,64487.0,0.25212241]
[1719117145599,3.44661718,64488.0,64487.0,0.27212241]
[1719117145821,3.44661718,64488.0,64487.0,0.25212241]
[1719117146247,3.44661718,64488.0,64487.0,0.27212241]
[1719117146403,3.44661718,64488.0,64487.0,0.25212241]
[1719117147925,3.44695262,64488.0,64487.0,0.25212241]
[1719117148366,3.40595684,64488.0,64487.0,0.27212241]
[1719117148576,3.40595684,64488.0,64487.0,0.25212241]
[1719117148743,3.44685776,64488.0,64487.0,0.25212241]
[1719117150501,3.44685776,64488.0,64487.0,0.27212241]
[1719117150948,3.39631609,64488.0,64487.0,0.27212241]
[1719117151152,3.44685004,64488.0,64487.0,0.27212241]
[1719117151498,3.44685004,64488.0,64487.0,0.25212241]
[1719117153024,3.75698504,64488.0,64487.0,0.25212241]
[1719117153169,3.91381448,64488.0,64487.0,0.25212241]
[1719117154110,3.91376624,64488.0,64487.0,0.25212241]
[1719117154517,3.91376624,64488.0,64487.0,0.18502241]
[1719117155278,3.91376624,64488.0,64487.0,0.09422241]
[1719117157306,3.91361879,64488.0,64487.0,0.09422241]
[1719117157513,3.75678029,64488.0,64487.0,0.09422241]
[1719117157704,3.91360707,64488.0,64487.0,0.09422241]
[1719117157913,3.91360707,64488.0,64487.0,0.18592241]
[1719117160316,3.88260679,64488.0,64487.0,0.18592241]
[1719117160536,3.87296431,64488.0,64487.0,0.18592241]
[1719117160663,3.91368215,64488.0,64487.0,0.18592241]
[1719117161393,3.91368215,64488.0,64487.0,0.09422241]
[1719117162988,3.91368215,64488.0,64487.0,0.18232241]
[1719117163235,3.70645109,64488.0,64487.0,0.18232241]
[1719117163406,3.91379469,64488.0,64487.0,0.18232241]
[1719117166322,3.86332873,64488.0,64487.0,0.18232241]
[1719117166523,3.75689841,64488.0,64487.0,0.18232241]
[1719117166747,3.70645109,64488.0,64487.0,0.18232241]
[1719117166957,3.91378027,64488.0,64487.0,0.18232241]
[1719117167355,3.7568972,64488.0,64487.0,0.18232241]
[1719117167940,3.70645109,64488.0,64487.0,0.18232241]
[1719117168144,3.75696089,64488.0,64487.0,0.18232241]
[1719117169450,3.7568851,64488.0,64487.0,0.18232241]
[1719117170210,1.3167721,64488.0,64487.0,0.20232241]
[1719117170634,3.7568851,64488.0,64487.0,0.20232241]
[1719117170773,3.75689534,64488.0,64487.0,0.20232241]
[1719117171619,3.75689534,64488.0,64487.0,0.18232241]
[1719117172573,3.70645109,64488.0,64487.0,0.20232241]
[1719117172713,3.91383083,64488.0,64487.0,0.20232241]
[1719117173531,3.91383406,64488.0,64487.0,0.18232241]
[1719117173728,3.91383177,64488.0,64487.0,0.27412241]
[1719117173929,3.75694418,64488.0,64487.0,0.27412241]
[1719117174203,3.91383177,64488.0,64487.0,0.27412241]
[1719117174969,3.86193177,64488.0,64487.0,0.27412241]
[1719117175187,3.75694418,64488.0,64487.0,0.27412241]
[1719117175590,3.70645109,64488.0,64487.0,0.27412241]
[1719117175798,3.7572952,64488.0,64487.0,0.27412241]
[1719117176022,3.78885489,64488.0,64487.0,0.27412241]
[1719117176370,3.7572952,64488.0,64487.0,0.27412241]
[1719117177181,3.70645109,64488.0,64487.0,0.27412241]
[1719117177386,3.75745135,64488.0,64487.0,0.27412241]
[1719117177886,3.91109658,64488.0,64487.0,0.001621]
[1719117178264,4.00419658,64488.0,64487.0,0.001621]
[1719117178763,4.00466328,64488.0,64487.0,0.001621]
[1719117181297,3.82184328,64488.0,64487.0,0.001621]
[1719117181978,3.97691028,64488.0,64487.0,0.001621]
[1719117183296,3.81451028,64488.0,64487.0,0.001621]
[1719117184412,3.72010547,64488.0,64487.0,0.001621]
[1719117184642,3.72010547,64488.0,64487.0,0.00193115]
[1719117184643,3.80489904,64488.0,64487.0,0.00193115]
[1719117184859,3.81454158,64488.0,64487.0,0.00193115]
[1719117186394,3.94620763,64488.0,64487.0,0.00193115]
[1719117186616,3.97574158,64488.0,64487.0,0.00193115]
[1719117187139,3.96618273,64488.0,64487.0,0.00193115]
[1719117187550,3.9758252,64488.0,64487.0,0.00193115]
[1719117188859,3.9778252,64488.0,64487.0,0.00193115]
[1719117189098,3.9798252,64488.0,64487.0,0.00193115]
[1719117189408,3.9758252,64488.0,64487.0,0.00193115]
[1719117189788,3.9798252,64488.0,64487.0,0.00193115]
[1719117191106,3.93791358,64488.0,64487.0,0.00193115]
[1719117191277,3.97965471,64488.0,64487.0,0.00193115]
[1719117191924,4.11288781,64488.0,64487.0,0.00193115]
[1719117193136,3.93791358,64488.0,64487.0,0.00193115]
[1719117193359,3.89501547,64488.0,64487.0,0.00193115]
[1719117193582,3.885373,64488.0,64487.0,0.00193115]
[1719117193794,3.93799782,64488.0,64487.0,0.00193115]
[1719117194056,4.06464984,64488.0,64487.0,0.00193115]
[1719117196369,3.92835562,64488.0,64487.0,0.00193115]
[1719117196588,4.06441366,64488.0,64487.0,0.00193115]
[1719117196806,3.92835562,64488.0,64487.0,0.00193115]
[1719117197052,4.01317139,64488.0,64487.0,0.00193115]
[1719117197238,4.06464845,64488.0,64487.0,0.00193115]
[1719117198101,4.21720259,64488.0,64487.0,0.00193115]
[1719117199216,4.13238197,64488.0,64487.0,0.00193115]
[1719117199428,1.69226897,64488.0,64487.0,0.00193115]
[1719117199646,3.97024907,64488.0,64487.0,0.00193115]
[1719117199856,3.97989103,64488.0,64487.0,0.00193115]
[1719117202678,3.98010509,64488.0,64487.0,0.00193115]
[1719117203111,3.93810204,64488.0,64487.0,0.00193115]
[1719117203766,3.98006167,64488.0,64487.0,0.00193115]
[1719117205610,3.843535,64488.0,64487.0,0.00193115]
[1719117205808,3.9801333,64488.0,64487.0,0.00193115]
[1719117206891,3.8189333,64488.0,64487.0,0.00193115]
[1719117208871,3.77692631,64488.0,64487.0,0.00193115]
[1719117209075,3.81891582,64488.0,64487.0,0.00193115]
[1719117210809,3.81891582,64488.0,64487.0,0.02193115]
[1719117211622,3.97566479,64488.0,64487.0,0.02193115]
[1719117211856,3.73420737,64488.0,64487.0,0.02193115]
[1719117212077,3.81936919,64488.0,64487.0,0.02193115]
[1719117212289,3.69197721,64488.0,64487.0,0.02193115]
[1719117212523,3.77713946,64488.0,64487.0,0.02193115]
[1719117212735,3.81936939,64488.0,64487.0,0.02193115]
[1719117212954,3.81936939,64488.0,64487.0,0.00193115]
[1719117213589,3.81931045,64488.0,64487.0,0.00193115]
[1719117214893,3.682335,64488.0,64487.0,0.00193115]
[1719117215095,3.80967693,64488.0,64487.0,0.00193115]
[1719117215328,3.81931858,64488.0,64487.0,0.00193115]
[1719117218150,3.682335,64488.0,64487.0,0.00193115]
[1719117218348,3.81929463,64488.0,64487.0,0.00193115]
[1719117218772,1.37918163,64488.0,64487.0,0.00193115]
[1719117219202,3.81929463,64488.0,64487.0,0.00193115]
[1719117221239,3.73415931,64488.0,64487.0,0.00193115]
[1719117221449,3.81927805,64488.0,64487.0,0.00193115]
[1719117221687,3.7245175,64488.0,64487.0,0.00193115]
[1719117221895,3.81927805,64488.0,64487.0,0.00193115]
[1719117224550,3.81925972,64488.0,64487.0,0.00193115]
[1719117230732,3.81918168,64488.0,64487.0,0.00193115]
[1719117230992,3.682335,64488.0,64487.0,0.00193115]
[1719117231197,3.77705916,64488.0,64487.0,0.00193115]
[1719117231631,3.81919988,64488.0,64487.0,0.00193115]
[1719117232319,3.90427215,64488.0,64487.0,0.00193115]
[1719117232513,3.85167893,64488.0,64487.0,0.00193115]
[1719117232732,3.80953821,64488.0,64487.0,0.00193115]
[1719117232936,3.81917974,64488.0,64487.0,0.00193115]
[1719117236695,3.7340996,64488.0,64487.0,0.00193115]
[1719117236939,3.81916459,64488.0,64487.0,0.00193115]
[1719117237369,3.80474858,64488.0,64487.0,0.00193115]
[1719117239733,3.66791899,64488.0,64487.0,0.00193115]
[1719117239951,3.80475429,64488.0,64487.0,0.00193115]
[1719117240172,3.75298676,64488.0,64487.0,0.00193115]
[1719117240411,3.83803085,64488.0,64487.0,0.00193115]
[1719117240642,3.79506206,64488.0,64487.0,0.00193115]
[1719117240863,3.80470355,64488.0,64487.0,0.00193115]
[1719117242246,3.80470467,64488.0,64487.0,0.00193115]
[1719117245394,3.80472892,64488.0,64487.0,0.00193115]
[1719117248564,3.80476518,64488.0,64487.0,0.00193115]
[1719117248917,3.76263373,64488.0,64487.0,0.00193115]
[1719117249273,3.71969206,64488.0,64487.0,0.00193115]
[1719117249537,3.80476518,64488.0,64487.0,0.09533115]
[1719117250076,3.71005044,64488.0,64487.0,0.09533115]
[1719117250280,3.80475717,64488.0,64487.0,0.09533115]
[1719117251715,3.80476457,64488.0,64487.0,0.09533115]
[1719117254319,3.71968964,64488.0,64487.0,0.09533115]
[1719117254742,3.67756207,64488.0,64487.0,0.09533115]
[1719117254942,3.71945533,64488.0,64487.0,0.09533115]
[1719117255660,3.80430717,64488.0,64487.0,0.09533115]
[1719117257019,3.80437675,64488.0,64487.0,0.09533115]
[1719117257991,3.66791899,64488.0,64487.0,0.09533115]
[1719117258231,3.80454601,64488.0,64487.0,0.09533115]
[1719117258447,3.66791899,64488.0,64487.0,0.09533115]
[1719117258668,3.79484177,64488.0,64487.0,0.09533115]
[1719117258902,3.80248467,64488.0,64487.0,0.09533115]
[1719117259156,3.80448467,64488.0,64487.0,0.09533115]
[1719117259666,3.80248467,64488.0,64487.0,0.09533115]
[1719117260391,3.80048467,64488.0,64487.0,0.09533115]
[1719117261069,3.66391899,64488.0,64487.0,0.09533115]
[1719117261296,3.80063963,64488.0,64487.0,0.09533115]
[1719117264315,3.80066516,64488.0,64487.0,0.09533115]
[1719117267434,3.66391899,64488.0,64487.0,0.09533115]
[1719117267585,3.71563437,64488.0,64487.0,0.09533115]
[1719117267792,3.8006618,64488.0,64487.0,0.09533115]
[1719117267995,3.75858919,64488.0,64487.0,0.09533115]
[1719117268192,3.76823196,64488.0,64487.0,0.09533115]
[1719117268413,3.75858919,64488.0,64487.0,0.09533115]
[1719117268599,3.8006618,64488.0,64487.0,0.09533115]
[1719117270197,1.3605488,64488.0,64487.0,0.09533115]
[1719117270599,3.67356183,64488.0,64487.0,0.09533115]
[1719117271021,3.71563898,64488.0,64487.0,0.09533115]
[1719117272451,3.8006707,64488.0,64487.0,0.09533115]
[1719117273737,3.66391899,64488.0,64487.0,0.09533115]
[1719117273942,3.71563591,64488.0,64487.0,0.09533115]
[1719117274107,3.80066505,64488.0,64487.0,0.09533115]
[1719117274951,3.80066505,64488.0,64487.0,0.00193115]
[1719117276784,3.74894813,64488.0,64487.0,0.00193115]
[1719117276983,3.75812598,64488.0,64487.0,0.00193115]
[1719117277140,3.71510523,64488.0,64487.0,0.00193115]
[1719117277558,3.72474796,64488.0,64487.0,0.00193115]
[1719117277735,3.79966949,64488.0,64487.0,0.00193115]
[1719117278349,3.80066949,64488.0,64487.0,0.00193115]
[1719117278762,3.79966949,64488.0,64487.0,0.00193115]
[1719117279359,3.80066949,64488.0,64487.0,0.00193115]
[1719117279594,3.79966949,64488.0,64487.0,0.00193115]
[1719117279922,3.79948656,64488.0,64487.0,0.00193115]
[1719117283003,3.79933123,64488.0,64487.0,0.00193115]
[1719117286028,3.66391899,64488.0,64487.0,0.00193115]
[1719117286227,3.71500061,64488.0,64487.0,0.00193115]
[1719117286364,3.79947565,64488.0,64487.0,0.00193115]
[1719117286739,3.79946196,64488.0,64487.0,0.00193115]
[1719117287141,3.7994463,64488.0,64487.0,0.00193115]
[1719117289323,3.79952196,64488.0,64487.0,0.00193115]
[1719117292345,3.66391899,64488.0,64487.0,0.00193115]
[1719117292511,3.7898325,64488.0,64487.0,0.00193115]
[1719117292716,3.79947797,64488.0,64487.0,0.00193115]
[1719117295429,3.74829595,64488.0,64487.0,0.00193115]
[1719117295626,3.79925086,64488.0,64487.0,0.00193115]
[1719117296036,3.83093268,64488.0,64487.0,0.00193115]
[1719117296234,3.78964265,64488.0,64487.0,0.00193115]
[1719117296584,3.79928929,64488.0,64487.0,0.00193115]
[1719117298547,3.66391899,64488.0,64487.0,0.00193115]
[1719117298749,3.79922684,64488.0,64487.0,0.00193115]
[1719117303704,3.70534826,64488.0,64487.0,0.00193115]
[1719117303910,3.79947923,64488.0,64487.0,0.00193115]
[1719117304303,3.79949559,64488.0,64487.0,0.00193115]
[1719117304740,3.74759559,64488.0,64487.0,0.00193115]
[1719117304984,3.79949559,64488.0,64487.0,0.09233115]
[1719117306717,3.79986224,64488.0,64487.0,0.09233115]
[1719117309563,3.79986224,64488.0,64487.0,0.18413115]